bitfinex-derivatives/quotes_BNBF0:USTF0_20250305
["timestamp","ask_amount","ask_price","bid_price","bid_amount"]
[1741174637738,4.04172557,601.46,600.62,0.33298924]
[1741174637937,1.62417529,601.45,600.62,0.33298924]
[1741174638137,1.18468648,601.49,600.62,0.33298924]
[1741174638839,4.04330044,601.48,600.62,0.33298924]
[1741174639245,3.11311521,601.48,600.62,0.33298924]
[1741174639445,1.18468648,601.49,600.62,0.33298924]
[1741174639644,4.04518506,601.47,600.62,0.33298924]
[1741174639843,2.41960098,601.47,600.62,0.33298924]
[1741174640144,0.93061576,601.47,600.62,0.33298924]
[1741174640344,1.18468648,601.49,600.62,0.33298924]
[1741174640747,4.04674503,601.48,600.62,0.33298924]
[1741174640947,2.42054048,601.48,600.62,0.33298924]
[1741174641338,1.48956337,601.48,600.62,0.33298924]
[1741174641544,1.18468648,601.49,600.62,0.33298924]
[1741174641939,4.04784783,601.48,600.62,0.33298924]
[1741174642141,5.23253431,601.47,600.62,0.33298924]
[1741174642346,4.04784783,601.46,600.62,0.33298924]
[1741174642545,4.04784783,601.45,600.62,0.33298924]
[1741174642746,4.04784783,601.44,600.62,0.33298924]
[1741174642939,1.18468648,601.45,600.62,0.33298924]
[1741174642940,4.04778952,601.43,600.62,0.33298924]
[1741174643141,2.55787774,601.42,600.62,0.33298924]
[1741174643342,2.55787774,601.41,600.62,0.33298924]
[1741174643543,0.9312313,601.4,600.62,0.33298924]
[1741174643844,2.55775395,601.39,600.62,0.33298924]
[1741174644046,3.74238067,601.38,600.62,0.33298924]
[1741174644247,0.9312313,601.37,600.62,0.33298924]
[1741174644448,0.9312313,601.36,600.62,0.33298924]
[1741174644743,0.93102167,601.35,600.62,0.33298924]
[1741174644949,0.93102167,601.34,600.62,0.33298924]
[1741174645243,0.93102167,601.33,600.62,0.33298924]
[1741174645443,1.18468648,601.35,600.62,0.33298924]
[1741174645444,0.93102167,601.32,600.62,0.33298924]
[1741174645641,0.93102167,601.31,600.62,0.33298924]
[1741174645947,1.18468648,601.32,600.62,0.33298924]
[1741174646242,2.11555291,601.31,600.62,0.33298924]
[1741174646551,0.93086643,601.3,600.62,0.33298924]
[1741174646847,1.18468648,601.29,600.62,0.33298924]
[1741174647147,1.18468648,601.28,600.62,0.33298924]
[1741174647542,1.48925371,601.59,600.62,0.33298924]
[1741174647746,4.04888842,601.58,600.62,0.33298924]
[1741174647946,4.04888842,601.57,600.62,0.33298924]
[1741174648147,5.23880468,601.56,600.62,0.33298924]
[1741174648449,4.04888842,601.55,600.62,0.33298924]
[1741174648649,3.11810307,601.54,600.62,0.33298924]
[1741174648849,4.04888842,601.53,600.62,0.33298924]
[1741174649049,4.04888842,601.52,600.63,0.465]
[1741174649251,4.04888842,601.51,600.63,0.465]
[1741174649452,4.04888842,601.5,600.63,0.465]
[1741174649651,4.04888842,601.49,600.63,0.465]
[1741174649859,4.04860098,601.48,600.63,0.465]
[1741174650050,4.04860098,601.47,600.63,0.465]
[1741174650253,4.04860098,601.46,600.63,0.465]
[1741174650450,4.04860098,601.45,600.63,0.465]
[1741174650654,4.04860098,601.44,600.63,0.465]
[1741174650958,5.23851724,601.43,600.63,0.465]
[1741174651151,4.04860098,601.42,600.63,0.465]
[1741174651351,4.04860098,601.41,600.63,0.465]
[1741174651552,4.04860098,601.4,600.63,0.465]
[1741174651754,4.04860098,601.39,600.63,0.465]
[1741174651954,4.04860098,601.38,600.63,0.465]
[1741174652250,3.74943932,601.37,600.63,0.465]
[1741174652454,2.55952306,601.36,600.63,0.465]
[1741174652758,2.55952306,601.35,600.63,0.465]
[1741174652958,0.9306737,601.34,600.63,0.465]
[1741174653251,1.18991626,601.35,600.63,0.465]
[1741174653452,0.93057686,601.34,600.63,0.465]
[1741174653655,0.93057686,601.33,600.63,0.465]
[1741174653850,1.18991626,601.34,600.63,0.465]
[1741174654057,1.18991626,601.33,600.63,0.465]
[1741174654255,1.18991626,601.33,600.64,0.33297815]
[1741174654455,1.18991626,601.32,600.64,0.33297815]
[1741174655151,1.48888349,601.6,600.64,0.33297815]
[1741174655357,4.04734349,601.59,600.64,0.33297815]
[1741174655558,4.04734349,601.58,600.64,0.33297815]
[1741174655752,4.04734349,601.57,600.64,0.33297815]
[1741174655955,4.04734349,601.56,600.64,0.33297815]
[1741174656155,4.04734349,601.55,600.64,0.33297815]
[1741174656354,4.04734349,601.54,600.64,0.33297815]
[1741174656553,4.04734349,601.53,600.64,0.33297815]
[1741174656757,4.04734349,601.52,600.64,0.33297815]
[1741174656954,4.04734349,601.51,600.64,0.33297815]
[1741174657258,2.55846,601.5,600.64,0.33297815]
[1741174657458,2.55846,601.49,600.64,0.33297815]
[1741174657757,3.74793946,601.48,600.77,1.24252345]
[1741174657957,2.55846,601.47,600.77,1.57542955]
[1741174658157,1.18947946,601.48,600.77,1.57542955]
[1741174658559,1.18947946,601.47,600.77,1.57542955]
[1741174659061,1.48823663,601.66,600.77,1.57542955]
[1741174659258,4.04535562,601.65,600.77,1.57542955]
[1741174659458,4.04535562,601.64,600.77,1.57542955]
[1741174659662,4.04535562,601.63,600.77,1.57542955]
[1741174659861,4.04535562,601.62,600.81,1.24252345]
[1741174660062,5.23420531,601.61,600.81,1.24252345]
[1741174660261,4.04535562,601.6,600.81,1.24252345]
[1741174660456,4.04535562,601.59,600.81,1.24252345]
[1741174660661,4.04535562,601.58,600.81,1.24252345]
[1741174660862,5.23420531,601.57,600.81,1.24252345]
[1741174661062,5.23420531,601.56,600.81,1.24252345]
[1741174661261,2.55711899,601.55,600.81,1.24252345]
[1741174661557,3.74596868,601.54,600.81,1.24252345]
[1741174661762,2.55711899,601.53,600.81,1.24252345]
[1741174661963,0.930101,601.52,600.77,0.3329061]
[1741174662160,2.11895069,601.51,600.77,0.3329061]
[1741174662360,1.18884969,601.51,600.77,0.3329061]
[1741174662861,1.18884969,601.5,600.77,0.3329061]
[1741174663362,1.18884969,601.49,600.77,0.3329061]
[1741174664058,1.18207816,601.49,600.77,0.3329061]
[1741174664464,1.48736057,601.6,600.77,0.3329061]
[1741174664765,4.04172563,601.59,600.77,0.3329061]
[1741174664961,2.55436506,601.58,600.77,0.3329061]
[1741174665160,4.04150304,601.57,600.77,0.3329061]
[1741174665364,4.04150304,601.56,600.77,0.3329061]
[1741174665564,4.04150304,601.55,600.77,0.3329061]
[1741174665763,4.04150304,601.54,600.77,0.3329061]
[1741174665964,4.04150304,601.53,600.77,0.3329061]
[1741174666167,4.04150304,601.52,600.77,0.3329061]
[1741174666364,2.55436506,601.51,600.77,0.3329061]
[1741174666567,2.55436506,601.5,600.77,0.3329061]
[1741174666764,0.92949485,601.49,600.77,0.3329061]
[1741174666962,0.92947698,601.48,600.77,1.57542955]
[1741174667168,1.28079877,601.71,600.77,1.57542955]
[1741174667368,4.0410758,601.7,600.77,1.57542955]
[1741174667563,4.0410758,601.69,600.77,1.57542955]
[1741174667763,4.0410758,601.68,600.77,1.57542955]
[1741174667962,4.0410758,601.67,600.77,1.57542955]
[1741174668267,4.0410758,601.66,600.77,1.57542955]
[1741174668470,4.0410758,601.65,600.77,1.57542955]
[1741174668667,4.0410758,601.64,600.77,1.57542955]
[1741174668969,4.0410758,601.63,600.83,1.24252345]
[1741174669172,2.55401372,601.62,600.84,0.33286731]
[1741174669369,2.55401372,601.61,600.84,0.33286731]
[1741174669668,0.9294138,601.6,600.84,0.33286731]
[1741174669868,0.9294138,601.59,600.84,0.33286731]
[1741174670069,0.9294138,601.58,600.84,0.33286731]
[1741174670267,0.33203838,602.34,600.85,0.465]
[1741174670268,0.99139927,601.85,600.85,0.465]
[1741174670570,4.04031549,601.84,600.86,0.33285623]
[1741174670764,4.04031549,601.83,600.86,0.33285623]
[1741174670969,4.04031549,601.82,600.9,1.24252345]
[1741174671172,4.04031549,601.81,600.91,0.33282854]
[1741174671369,4.04031549,601.8,600.91,0.33282854]
[1741174671566,4.04031549,601.79,600.91,0.33282854]
[1741174671872,4.04031549,601.78,600.91,0.33282854]
[1741174672071,4.04031549,601.77,600.91,0.33282854]
[1741174672273,4.04031549,601.76,600.91,0.33282854]
[1741174672473,4.04031549,601.75,600.91,0.33282854]
[1741174672667,2.41511172,601.74,600.91,0.33282854]
[1741174672870,4.03931881,601.73,600.91,0.33282854]
[1741174673072,0.28931048,601.84,600.91,0.33282854]
[1741174673073,4.03931881,601.72,600.91,0.33282854]
[1741174673266,4.03931881,601.71,600.91,0.33282854]
[1741174673471,4.03931881,601.7,600.91,0.33282854]
[1741174673673,4.03931881,601.69,600.91,0.33282854]
[1741174673974,4.03931881,601.68,600.91,0.33282854]
[1741174674274,4.03913728,601.67,600.91,0.33282854]
[1741174674469,4.03913728,601.66,600.91,0.33282854]
[1741174674674,4.03913728,601.65,600.91,0.33282854]
[1741174674974,2.55295497,601.64,600.91,0.33282854]
[1741174675170,2.55295497,601.63,600.91,0.33282854]
[1741174675373,2.55295497,601.62,600.91,0.33282854]
[1741174675573,0.92886394,601.61,600.91,0.33282854]
[1741174675874,1.48629547,601.83,600.91,0.33282854]
[1741174676073,4.03953088,601.82,600.91,0.33282854]
[1741174676274,4.03953088,601.81,600.91,0.33282854]
[1741174676475,4.03953088,601.8,600.91,0.33282854]
[1741174676676,4.03953088,601.79,600.91,0.33282854]
[1741174676870,4.03953088,601.78,600.91,0.33282854]
[1741174677071,4.03953088,601.77,600.91,0.33282854]
[1741174677269,4.03953088,601.76,600.91,0.33282854]
[1741174677572,5.22697974,601.75,600.91,0.33282854]
[1741174677775,4.03953088,601.74,600.91,0.33282854]
[1741174677976,5.22697974,601.73,600.91,0.33282854]
[1741174678173,4.03953088,601.72,600.91,0.33282854]
[1741174678374,4.03961418,601.71,600.91,0.33282854]
[1741174678571,4.03961418,601.7,600.91,0.33282854]
[1741174678777,5.22706304,601.69,600.91,0.33282854]
[1741174679077,4.03985555,601.68,600.91,0.33282854]
[1741174679279,3.74069721,601.67,600.91,0.33282854]
[1741174679576,2.55324835,601.66,600.91,0.33282854]
[1741174679777,3.74069721,601.65,600.91,0.33282854]
[1741174679977,2.55324835,601.64,600.91,0.33282854]
[1741174680177,0.92897864,601.63,600.91,0.33282854]
[1741174680374,0.92897864,601.62,600.91,0.33282854]
[1741174680572,1.18744886,601.61,600.91,0.33282854]
[1741174680972,1.48670577,601.82,600.91,0.33282854]
[1741174681176,4.04043999,601.81,600.91,0.33282854]
[1741174681374,4.04069582,601.8,600.91,0.33282854]
[1741174681578,5.22844241,601.79,600.91,0.33282854]
[1741174681778,4.04069582,601.78,600.91,0.33282854]
[1741174681978,4.04069582,601.77,600.91,0.33282854]
[1741174682179,4.04069582,601.76,600.91,0.33282854]
[1741174682377,4.04069582,601.75,600.91,0.33282854]
[1741174682578,4.04069582,601.74,600.91,0.33282854]
[1741174682775,4.04069582,601.73,600.91,0.33282854]
[1741174683082,4.04069582,601.72,600.91,0.33282854]
[1741174683276,2.55399005,601.71,600.91,0.33282854]
[1741174683473,2.55399005,601.7,600.91,0.33282854]
[1741174683678,2.55399005,601.69,600.91,0.33282854]
[1741174683981,2.55399005,601.68,600.91,0.33282854]
[1741174684176,2.55399005,601.67,600.91,0.33282854]
[1741174684377,0.92912303,601.66,600.91,0.33282854]
[1741174684575,0.92912303,601.65,600.91,0.33282854]
[1741174684779,0.92912303,601.64,600.91,0.33282854]
[1741174685080,3.74258431,601.63,600.91,0.33282854]
[1741174685381,2.55483772,601.62,600.91,0.33282854]
[1741174685581,2.11727958,601.61,600.91,0.33282854]
[1741174685780,0.92953299,601.6,600.91,0.33282854]
[1741174685981,0.92953299,601.59,600.91,0.33282854]
[1741174686183,0.92953299,601.58,600.91,0.33282854]
[1741174686385,1.18774659,601.59,600.91,0.33282854]
[1741174686685,1.18774659,601.57,600.91,0.33282854]
[1741174687081,1.18774659,601.56,600.91,0.33282854]
[1741174687479,2.11768313,601.55,600.91,0.33282854]
[1741174687678,1.18774659,601.55,600.91,0.33282854]
[1741174688084,0.92989472,601.54,600.91,0.33282854]
[1741174688284,1.18774659,601.54,600.91,0.33282854]
[1741174688679,1.18774659,601.53,600.91,0.33282854]
[1741174689482,1.18774659,601.52,600.91,0.33282854]
[1741174690385,1.18774659,601.51,600.91,0.33282854]
[1741174690985,1.48827424,601.68,600.91,0.33282854]
[1741174691189,4.04492895,601.67,600.91,0.33282854]
[1741174691385,5.23406816,601.66,600.91,0.33282854]
[1741174691582,4.04492895,601.65,600.91,0.33282854]
[1741174691784,4.04492895,601.64,600.91,0.33282854]
[1741174691986,1.18913921,601.66,600.91,0.33282854]
[1741174691987,5.23406816,601.63,600.91,0.33282854]
[1741174692184,2.55665471,601.62,600.91,0.33282854]
[1741174692389,2.55665471,601.61,600.91,0.33282854]
[1741174692589,2.55665471,601.6,600.91,0.33282854]
[1741174692787,0.93025045,601.59,600.91,0.33282854]
[1741174692989,0.93044533,601.58,600.91,0.33282854]
[1741174693189,0.93052657,601.57,600.91,0.33282854]
[1741174693392,1.18913921,601.57,600.91,0.33282854]
[1741174693896,1.18913921,601.56,600.91,0.33282854]
[1741174694397,0.99118756,601.89,600.91,0.33282854]
[1741174694398,1.18913921,601.55,600.91,0.33282854]
[1741174695099,0.28934776,601.81,600.91,0.33282854]
[1741174695294,4.04684666,601.8,600.91,0.33282854]
[1741174695493,5.23644287,601.79,600.91,0.33282854]
[1741174695793,4.04684666,601.78,600.91,0.33282854]
[1741174695998,5.23644287,601.77,600.91,0.33282854]
[1741174696201,4.04684666,601.76,600.91,0.33282854]
[1741174696401,4.04684666,601.75,600.91,0.33282854]
[1741174696693,4.04683221,601.74,600.91,0.33282854]
[1741174696901,4.04683221,601.73,600.91,0.33282854]
[1741174697095,5.23642842,601.72,600.91,0.33282854]
[1741174697297,4.04683221,601.71,600.91,0.33282854]
[1741174697499,4.04683221,601.7,600.91,0.33282854]
[1741174697696,2.55777931,601.69,600.91,0.33282854]
[1741174697902,2.12025427,601.68,600.91,0.33282854]
[1741174698100,2.12025427,601.67,600.91,0.33282854]
[1741174698401,0.93072711,601.66,600.91,0.33282854]
[1741174698701,1.18959621,601.67,600.91,0.33282854]
[1741174698899,0.93072112,601.66,600.91,0.33282854]
[1741174699101,1.18959621,601.65,600.91,0.33282854]
[1741174699602,0.28933092,601.84,600.91,0.33282854]
[1741174699603,2.12024963,601.64,600.91,0.33282854]
[1741174699796,1.18959621,601.64,600.91,0.33282854]
[1741174700396,1.18959621,601.63,600.91,0.33282854]
[1741174700702,1.18959621,601.63,600.91,0.79782854]
[1741174701001,1.18959621,601.62,600.91,0.79782854]
[1741174701400,1.18959621,601.61,600.91,0.79782854]
[1741174701802,1.4891745,601.7,600.91,0.79782854]
[1741174702005,4.04724592,601.69,600.91,0.79782854]
[1741174702198,4.04724592,601.68,600.91,0.78903106]
[1741174702404,2.55807142,601.67,600.91,0.78903106]
[1741174702602,2.55807142,601.66,600.91,0.78903106]
[1741174702799,1.18957225,601.68,600.91,0.78903106]
[1741174703002,5.23687644,601.67,600.91,0.78903106]
[1741174703203,4.04730419,601.66,600.91,0.78903106]
[1741174703405,5.23687644,601.65,600.91,0.78903106]
[1741174703705,4.04730518,601.64,600.91,0.78903106]
[1741174703906,4.0472517,601.63,600.91,0.78903106]
[1741174704205,4.04720656,601.62,600.91,0.78903106]
[1741174704400,4.04720656,601.61,600.91,0.78903106]
[1741174704608,5.23677881,601.6,600.93,1.24252345]
[1741174704801,4.04720656,601.59,600.93,1.24252345]
[1741174705001,2.5581023,601.58,600.93,1.24252345]
[1741174705205,3.74767455,601.57,600.93,1.24252345]
[1741174705404,2.5581023,601.56,600.93,1.24252345]
[1741174705607,0.93069016,601.55,600.93,1.24252345]
[1741174705805,2.55847958,601.54,600.93,1.24252345]
[1741174706002,2.55847958,601.53,600.91,0.78903106]
[1741174706305,0.93069016,601.52,600.91,0.78903106]
[1741174706501,2.12026241,601.51,600.91,0.78903106]
[1741174706707,1.18957225,601.51,600.91,0.78903106]
[1741174707007,1.18957225,601.5,600.91,0.78903106]
[1741174707610,1.48984464,601.81,600.91,0.78903106]
[1741174707810,4.04931073,601.8,600.91,0.78903106]
[1741174708012,5.23962321,601.79,600.91,0.78903106]
[1741174708304,4.04931073,601.78,600.91,0.78903106]
[1741174708510,5.23962321,601.77,600.91,0.78903106]
[1741174708703,4.04931073,601.76,600.91,0.78903106]
[1741174708906,2.42103841,601.75,600.91,0.78903106]
[1741174709107,4.04885704,601.74,600.91,0.78903106]
[1741174709307,4.04885704,601.73,600.91,0.78903106]
[1741174709511,4.04885704,601.72,600.91,0.78903106]
[1741174709710,5.23916952,601.71,600.91,0.78903106]
[1741174709910,4.04885704,601.7,600.91,0.78903106]
[1741174710111,4.04885704,601.69,600.91,0.78903106]
[1741174710312,4.04885704,601.68,600.91,0.78903106]
[1741174710611,4.04885704,601.67,600.91,0.78903106]
[1741174710812,4.04885704,601.66,600.91,0.78903106]
[1741174711111,2.5590124,601.65,600.91,0.78903106]
[1741174711310,0.93119377,601.64,600.91,0.78903106]
[1741174711517,0.93119377,601.63,600.91,0.78903106]
[1741174711715,0.93119377,601.62,600.91,0.78903106]
[1741174711916,1.19031248,601.64,600.91,0.78903106]
[1741174712111,0.2893225,601.84,600.91,0.78903106]
[1741174712112,1.19031248,601.61,600.91,0.78903106]
[1741174712617,1.19031248,601.6,600.91,0.78903106]
[1741174712917,1.19031248,601.6,601.06,1.24252345]
[1741174713317,1.49151042,601.85,601.06,1.24252345]
[1741174713616,4.05319664,601.84,601.06,1.24252345]
[1741174713813,4.05319664,601.83,601.06,1.24252345]
[1741174714013,4.05319664,601.82,601.06,1.24252345]
[1741174714214,4.05319664,601.81,601.06,1.24252345]
[1741174714410,4.05319664,601.8,601.06,1.24252345]
[1741174714616,4.05319664,601.79,601.06,1.24252345]
[1741174714815,4.05319664,601.78,601.06,1.24252345]
[1741174715017,4.05319664,601.77,601.06,1.24252345]
[1741174715214,4.05319664,601.76,601.06,1.24252345]
[1741174715415,4.05359642,601.75,601.06,1.24252345]
[1741174715714,2.56168622,601.74,601.03,1.24252345]
[1741174715909,2.56168622,601.73,601.03,1.24252345]
[1741174716114,2.56168622,601.72,601.03,1.24252345]
[1741174716416,2.56168622,601.71,601.03,1.24252345]
[1741174716617,2.12395379,601.7,601.03,1.24252345]
[1741174716813,2.56130002,601.69,601.03,1.70852345]
[1741174717012,2.56130002,601.68,601.03,1.70852345]
[1741174717318,0.93227571,601.67,601.03,1.70852345]
[1741174717518,0.93227571,601.66,601.03,1.70852345]
[1741174717714,2.12395379,601.65,601.03,1.70852345]
[1741174717922,0.9323675,601.64,601.08,1.24252345]
[1741174718119,0.9323675,601.63,601.08,1.24252345]
[1741174718322,0.9323675,601.62,601.08,1.24252345]
[1741174718523,2.12404558,601.61,601.08,1.24252345]
[1741174718822,0.9323675,601.6,601.08,1.24252345]
[1741174719020,0.9323675,601.59,601.08,1.24252345]
[1741174719223,1.19167808,601.61,601.08,1.24252345]
[1741174719520,1.19167808,601.58,601.08,1.24252345]
[1741174719923,1.19167808,601.57,601.08,1.24252345]
[1741174720319,1.19167808,601.57,601.03,0.466]
[1741174720719,1.19167808,601.56,601.03,0.466]
[1741174721219,0.99145816,601.85,601.03,0.466]
[1741174721524,5.04380727,601.84,601.03,0.466]
[1741174721725,5.24449309,601.83,601.03,0.466]
[1741174721926,4.05234911,601.82,601.03,0.466]
[1741174722125,4.05234911,601.81,601.03,0.466]
[1741174722326,4.05234911,601.8,601.03,0.466]
[1741174722625,4.05234911,601.79,601.03,0.466]
[1741174722826,4.05234911,601.78,601.03,0.466]
[1741174723125,4.05234911,601.77,601.03,0.466]
[1741174723325,4.05234911,601.76,601.03,0.466]
[1741174723527,4.05234911,601.75,601.03,0.466]
[1741174723727,4.05234911,601.74,601.03,0.466]
[1741174723928,4.05234911,601.73,601.03,0.466]
[1741174724226,1.19214398,601.74,601.03,0.466]
[1741174724227,4.05234911,601.72,601.03,0.466]
[1741174724427,4.05234911,601.71,601.03,0.466]
[1741174724630,4.05234911,601.7,601.03,0.466]
[1741174724828,5.24449309,601.69,601.03,0.466]
[1741174725023,4.05234911,601.68,601.03,0.466]
[1741174725228,5.24449309,601.67,601.03,0.466]
[1741174725429,4.05234911,601.66,601.03,0.466]
[1741174725628,4.05234911,601.65,601.03,0.466]
[1741174725827,4.05234911,601.64,601.03,0.466]
[1741174726027,4.05234911,601.63,601.03,0.466]
[1741174726228,4.05406712,601.62,601.03,0.466]
[1741174726428,4.05406712,601.61,601.03,0.466]
[1741174726624,2.561531,601.6,601.03,0.466]
[1741174726828,4.05403799,601.59,601.03,0.466]
[1741174727024,2.561531,601.58,601.03,0.466]
[1741174727225,2.561531,601.57,601.03,0.466]
[1741174727432,2.561531,601.56,601.03,0.466]
[1741174727725,2.561531,601.55,601.03,0.466]
[1741174727931,2.561531,601.54,601.03,0.466]
[1741174728131,0.93283507,601.53,601.03,0.466]
[1741174728333,0.93283507,601.52,601.03,0.466]
[1741174728632,2.12497905,601.51,601.03,0.466]
[1741174728827,0.93283507,601.5,601.03,0.466]
[1741174729030,1.19214398,601.51,601.03,0.466]
[1741174729229,1.19214398,601.49,601.03,0.466]
[1741174729930,1.19214398,601.48,601.03,0.466]
[1741174730330,0.99371294,601.8,601.03,0.466]
[1741174730531,4.05711436,601.79,601.03,0.466]
[1741174730727,4.05711436,601.78,601.03,0.466]
[1741174731027,5.25033169,601.77,601.03,0.466]
[1741174731228,4.05711436,601.76,601.03,0.466]
[1741174731427,4.05711436,601.75,601.03,0.466]
[1741174731629,2.42652017,601.74,601.03,0.466]
[1741174731831,5.25039187,601.73,601.03,0.466]
[1741174732032,4.05717454,601.72,601.03,0.466]
[1741174732233,5.25039187,601.71,601.03,0.466]
[1741174732433,4.05717454,601.7,601.03,0.466]
[1741174732635,5.25039187,601.69,601.03,0.466]
[1741174732835,4.05717454,601.68,601.03,0.466]
[1741174733035,4.05717454,601.67,601.03,0.466]
[1741174733334,5.25039187,601.66,601.03,0.466]
[1741174733537,4.05717454,601.65,601.03,0.466]
[1741174733730,5.25039187,601.64,601.03,0.466]
[1741174733929,2.56393136,601.63,601.03,0.466]
[1741174734132,2.56393136,601.62,601.03,0.466]
[1741174734332,2.56393136,601.61,601.03,0.466]
[1741174734531,1.19321733,601.62,601.03,0.466]
[1741174734532,0.93327699,601.6,601.03,0.466]
[1741174734732,0.93327699,601.59,601.03,0.466]
[1741174735037,0.93370256,601.58,601.03,0.466]
[1741174735234,0.93368829,601.57,601.03,0.466]
[1741174735436,1.19321733,601.59,601.03,0.466]
[1741174735735,2.1269429,601.58,601.03,0.466]
[1741174735932,1.19321733,601.57,601.03,0.466]
[1741174736338,1.19321733,601.56,601.03,0.466]
[1741174736737,1.28304025,601.83,601.03,0.466]
[1741174736931,4.05936437,601.82,601.03,0.466]
[1741174737134,4.05936437,601.81,601.03,0.466]
[1741174737330,5.25261907,601.8,601.03,0.466]
[1741174737536,4.05936437,601.79,601.03,0.466]
[1741174737735,5.25261907,601.78,601.03,0.466]
[1741174737932,5.25261907,601.77,601.03,0.466]
[1741174738135,4.05936437,601.76,601.03,0.466]
[1741174738336,4.05936437,601.75,601.03,0.466]
[1741174738532,5.25261907,601.74,601.03,0.466]
[1741174738732,4.05936437,601.73,601.03,0.466]
[1741174738938,5.25261907,601.72,601.03,0.466]
[1741174739238,4.05936437,601.71,601.03,0.466]
[1741174739434,4.05936437,601.7,601.03,0.466]
[1741174739741,4.06004937,601.69,601.03,0.466]
[1741174740041,5.25330407,601.68,601.03,0.466]
[1741174740341,4.06004937,601.67,601.03,0.466]
[1741174740538,5.25330407,601.66,601.03,0.466]
[1741174740740,4.06004937,601.65,601.03,0.466]
[1741174740940,4.06004937,601.64,601.03,0.466]
[1741174741239,5.25330407,601.63,601.03,0.466]
[1741174741442,4.06004937,601.62,601.03,0.466]
[1741174741641,5.25310078,601.61,601.03,0.466]
[1741174741940,4.05984608,601.6,601.03,0.466]
[1741174742140,4.05984608,601.59,601.03,0.466]
[1741174742337,3.75858779,601.58,601.03,0.466]
[1741174742534,2.56533309,601.57,601.03,0.466]
[1741174742734,2.56533309,601.56,601.03,0.466]
[1741174742935,0.93407061,601.55,601.03,0.466]
[1741174743139,0.93407061,601.54,601.03,0.466]
[1741174743338,0.93407061,601.53,601.03,0.466]
[1741174743542,0.93359609,601.52,601.03,0.466]
[1741174743742,1.1932547,601.54,601.03,0.466]
[1741174743942,2.12677498,601.53,601.03,0.466]
[1741174744139,0.93352028,601.52,601.03,0.466]
[1741174744343,1.1932547,601.53,601.03,0.466]
[1741174744546,0.93369684,601.52,601.06,1.24252345]
[1741174744740,1.1932547,601.52,601.06,1.24252345]
[1741174745047,1.1932547,601.51,601.06,1.24252345]
[1741174745944,1.1932547,601.5,601.06,1.24252345]
[1741174746343,0.99445476,601.79,601.06,1.24252345]
[1741174746544,4.05963538,601.78,601.06,1.24252345]
[1741174746744,5.22544222,601.77,601.15,1.24252345]
[1741174746944,4.05963538,601.76,601.15,1.24252345]
[1741174747146,4.05963538,601.75,601.15,1.24252345]
[1741174747343,5.22544222,601.74,601.15,1.24252345]
[1741174747543,4.05963538,601.73,601.15,1.24252345]
[1741174747748,4.05963538,601.72,601.15,1.24252345]
[1741174747946,5.22544222,601.71,601.15,1.24252345]
[1741174748251,5.22544222,601.7,601.15,1.24252345]
[1741174748446,4.05963538,601.69,601.15,1.70852345]
[1741174748646,5.22544222,601.68,601.15,1.70852345]
[1741174748851,4.05963538,601.67,601.15,1.70852345]
[1741174749153,4.05963538,601.66,601.15,0.466]
[1741174749347,4.05963538,601.65,601.15,0.466]
[1741174749545,4.05963538,601.64,601.15,0.466]
[1741174749747,4.05963538,601.63,601.15,0.466]
[1741174749950,2.5654697,601.62,601.15,0.466]
[1741174750150,2.5654697,601.61,601.15,0.466]
[1741174750454,2.56466139,601.6,601.15,0.466]
[1741174750751,0.93385355,601.59,601.15,0.466]
[1741174750951,0.93385355,601.58,601.15,0.466]
[1741174751151,0.93385355,601.57,601.15,0.466]
[1741174751352,0.93385355,601.56,601.15,0.466]
[1741174751546,0.93325346,601.55,601.15,0.466]
[1741174751852,1.16580684,601.58,601.15,0.466]
[1741174752053,0.93301823,601.57,601.15,0.466]
[1741174752253,0.93301823,601.56,601.15,0.466]
[1741174752451,1.16597037,601.56,601.15,0.466]
[1741174753047,0.99445476,601.83,601.15,0.466]
[1741174753352,5.05037042,601.82,601.15,0.466]
[1741174753553,5.05037042,601.81,601.15,0.466]
[1741174753753,5.05037042,601.8,601.15,0.466]
[1741174753952,4.05591566,601.79,601.15,0.466]
[1741174754149,4.05591566,601.78,601.15,0.466]
[1741174754353,5.22186351,601.77,601.15,0.466]
[1741174754553,4.05591566,601.76,601.15,0.466]
[1741174754753,5.22186351,601.75,601.15,0.466]
[1741174754948,4.05591566,601.74,601.15,0.466]
[1741174755153,4.05591566,601.73,601.15,0.466]
[1741174755355,5.22186351,601.72,601.15,0.466]
[1741174755558,4.05591566,601.71,601.15,0.466]
[1741174755753,5.22186351,601.7,601.15,0.466]
[1741174756055,4.05591566,601.69,601.15,0.466]
[1741174756356,5.22186351,601.68,601.15,0.466]
[1741174756555,4.05591566,601.67,601.15,0.466]